[Event "ROU-ch Men 2018"]
[Site "Olanesti"]
[Date "2018.05.16"]
[Round "3"]
[White "Vasilescu, Lucian-Mihail"]
[Black "Berechet, Stefan-Mario"]
[Result "1-0"]
[ECO "A37"]
[WhiteElo "2243"]
[BlackElo "1879"]
[Annotator "NA"]
[PlyCount "81"]
[EventDate "2018.??.??"]
[EventType "swiss"]
[EventCountry "ROU"]
[SourceTitle "playchess.com"]
[Source "ChessBase"]
[SourceQuality "1"]
[TimeControl "40/5400+30:1800+30"]

1. c4 {[%emt 0:04:37]} c5 {[%emt 0:00:19]} 2. g3 {[%emt 0:00:06]} g6 {[%emt 0:00:04]} 3. Bg2 {[%emt 0:00:05]} Bg7 {[%emt 0:00:02]} 4. Nc3 {[%emt 0:00:08]} Nc6 {[%emt 0:00:02]} 5. Nf3 {[%emt 0:02:02]} d6 {[%emt 0:00:16]} 6. O-O {[%emt 0:00:24]} a6 {[%emt 0:00:32]} 7. Rb1 {[%emt 0:06:44] A37: Symmetrical English vs ...g6: 4 Bg2 Bg7 5 Nf3} (7. a3 Rb8 8. b4 Nf6 9. bxc5 dxc5 10. Rb1 O-O 11. d3 Nd7 12. Ne4 b6 13. Bb2 e5 14. Nd6 Qc7 15. Nxc8 Rfxc8 {1-0 (24) Cornette,M (2606)-Cawdery,D (2447) London 2017}) 7... Rb8 {[%emt 0:00:15] LiveBook: 4 Games} 8. Ne1 {[%emt 0:01:10]} Bd7 $146 {[%emt 0:01:52]} ({Predecessor:} 8... Na5 9. b3 b5 10. cxb5 axb5 11. Bb2 b4 12. Nd5 Bxb2 13. Rxb2 e6 14. Ne3 Qf6 {0-1 (44) Andersson,G (2315)-Spiridonov,N (2490) Eksjo 1976}) 9. a4 {[%emt 0:00:17]} e6 {[%emt 0:07:50]} 10. d3 {[%emt 0:05:03]} Nge7 {[%emt 0:00:18]} 11. Bd2 {[%emt 0:00:22]} O-O {[%emt 0:00:21]} 12. Nc2 {[%emt 0:00:10]} Na7 {[%emt 0:05:59]} 13. b4 {[%emt 0:08:43]} b6 {[%emt 0:02:12]} 14. b5 {[%emt 0:05:14]} a5 {[%emt 0:00:28]} 15. e4 {[%emt 0:00:43]} f5 {[%emt 0:00:20]} 16. f4 {[%emt 0:01:40]} Be8 {[%emt 0:02:12]} 17. h3 {[%emt 0:01:05]} Bf7 {[%emt 0:00:20]} 18. Ne3 {[%emt 0:00:31]} Bd4 {[%emt 0:03:43]} 19. Qf3 {[%emt 0:11:47]} Qd7 {[%emt 0:02:19]} 20. Kh2 {[%emt 0:10:47]} Rbd8 {[%emt 0:00:11]} 21. Nc2 {[%emt 0:00:40]} Bg7 {[%emt 0:00:22]} 22. Rfd1 {[%emt 0:17:19]} d5 {[%emt 0:01:05]} 23. e5 {[%emt 0:00:21]} d4 {[%emt 0:01:13]} 24. Ne2 {[%emt 0:00:15]} Kh8 {[%emt 0:00:33]} 25. Rh1 {[%emt 0:00:57]} Rg8 {[%emt 0:00:33]} 26. g4 {[%emt 0:03:26]} Rdf8 {[%emt 0:02:32]} 27. Ng3 {[%emt 0:01:25]} Nac8 {[%emt 0:01:24]} 28. Rbe1 {[%emt 0:00:32]} Qe8 {[%emt 0:01:27]} 29. Qb7 {[%emt 0:04:10]} Qd8 {[%emt 0:01:45]} 30. Re2 {[%emt 0:00:38]} Be8 {[%emt 0:00:35]} 31. Ne1 {[%emt 0:00:45]} Qd7 {[%emt 0:00:20]} 32. Qa8 {[%emt 0:01:06]} Bh6 $2 {[%emt 0:01:06]} (32... g5 $1 $11 33. gxf5 gxf4 34. Bxf4 Nxf5) 33. g5 {[%emt 0:03:54]} Bg7 {[%emt 0:01:21]} 34. h4 {[%emt 0:00:06]} Bf7 {[%emt 0:01:27] [#]} 35. h5 $1 {[%emt 0:00:56]} gxh5 {[%emt 0:22:58]} 36. Kg1 {[%emt 0:00:14]} Qe8 {[%emt 0:00:49]} 37. Bf3 {[%emt 0:00:50]} Qd7 {[%emt 0:06:54]} 38. Bxh5 {[%emt 0:00:34]} Bxh5 $18 {[%emt 0:05:29]} 39. Rxh5 {[%emt 0:00:17]} Rf7 {[%emt 0:02:36]} 40. Rxh7+ {[%emt 0:00:00]} Kxh7 {[%emt 0:00:01]} 41. Qh1+ {[%emt 0:00:49]} 1-0

[Event "ROU-ch Men 2018"]
[Site "Olanesti"]
[Date "2018.05.16"]
[Round "3"]
[White "Horvat, Dan-Sebastian"]
[Black "Dobre, Claudiu-Cristian"]
[Result "1/2-1/2"]
[ECO "D00"]
[WhiteElo "2152"]
[BlackElo "2393"]
[Annotator "ChessBase"]
[PlyCount "97"]
[EventDate "2018.??.??"]
[EventType "swiss"]
[EventCountry "ROU"]
[SourceTitle "playchess.com"]
[Source "ChessBase"]
[SourceQuality "1"]
[TimeControl "40/5400+30:1800+30"]

1. d4 {[%emt 0:00:00]} d5 {[%emt 0:01:14]} 2. Bf4 {[%emt 0:00:19]} c6 {[%emt 0:01:43]} 3. Nf3 {[%emt 0:00:58]} Bf5 {[%emt 0:01:05]} 4. e3 {[%emt 0:01:06]} Nf6 {[%emt 0:01:40]} 5. c4 {[%emt 0:01:13]} e6 {[%emt 0:00:28]} 6. Qb3 {[%emt 0:02:27]} Qb6 {[%emt 0:00:29]} 7. Qxb6 {[%emt 0:03:43]} axb6 {[%emt 0:00:06]} 8. Nc3 {[%emt 0:02:29]} h6 {[%emt 0:26:00]} 9. Nd2 {[%emt 0:05:00]} Na6 {[%emt 0:41:50]} 10. Be2 {[%emt 0:04:27]} Nb4 {[%emt 0:00:38]} 11. O-O {[%emt 0:00:20]} Nd3 12. Bc7 {[%emt 0:00:28]} Nxb2 {[%emt 0:01:46]} 13. a3 {[%emt 0:09:37]} Na4 {[%emt 0:16:56]} 14. Nxa4 {[%emt 0:00:18]} Rxa4 {[%emt 0:00:05]} 15. Bxb6 {[%emt 0:00:20]} Bd6 {[%emt 0:01:09]} 16. c5 {[%emt 0:00:59]} Bb8 {[%emt 0:01:39]} 17. Nb3 {[%emt 0:16:59]} Nd7 {[%emt 0:00:14]} 18. Rfc1 {[%emt 0:00:51]} Ke7 {[%emt 0:01:50]} 19. Rc3 {[%emt 0:08:52]} Nxb6 {[%emt 0:00:23]} 20. cxb6 {[%emt 0:00:07]} Bd6 {[%emt 0:00:06]} 21. Nc5 {[%emt 0:08:23]} Bxc5 {[%emt 0:00:05]} 22. Rxc5 {[%emt 0:00:03]} Rha8 {[%emt 0:01:03]} 23. g4 {[%emt 0:00:36]} Bg6 {[%emt 0:00:33]} 24. Rc3 {[%emt 0:00:06]} Rb4 {[%emt 0:00:45]} 25. axb4 {[%emt 0:01:00]} Rxa1+ {[%emt 0:00:06]} 26. Kg2 {[%emt 0:00:14]} Rb1 {[%emt 0:00:51]} 27. b5 {[%emt 0:02:21]} Kd6 {[%emt 0:00:32]} 28. Rc5 {[%emt 0:12:25]} Rb2 {[%emt 0:00:30]} 29. Bf1 {[%emt 0:00:57]} f5 {[%emt 0:00:40]} 30. gxf5 {[%emt 0:00:33]} exf5 {[%emt 0:00:27]} 31. bxc6 {[%emt 0:01:25]} bxc6 {[%emt 0:00:05]} 32. Ra5 {[%emt 0:00:05]} Rxb6 {[%emt 0:00:46]} 33. Ra7 {[%emt 0:00:08]} f4 {[%emt 0:00:24]} 34. exf4 {[%emt 0:01:49]} Be4+ {[%emt 0:00:38]} 35. f3 {[%emt 0:00:05]} Rb2+ {[%emt 0:00:14]} 36. Kg1 {[%emt 0:01:40]} Bxf3 {[%emt 0:00:48]} 37. Bh3 {[%emt 0:01:34]} c5 {[%emt 0:00:06]} 38. Ra6+ {[%emt 0:00:04]} Ke7 {[%emt 0:00:59]} 39. dxc5 {[%emt 0:01:02]} Rc2 {[%emt 0:00:22]} 40. Ra7+ {[%emt 0:00:00]} Kf6 {[%emt 0:00:18]} 41. Ra6+ {[%emt 0:08:58]} Kf7 {[%emt 0:03:37]} 42. c6 {[%emt 0:02:52]} d4 {[%emt 0:03:22]} 43. Ra7+ {[%emt 0:02:37]} Kf6 {[%emt 0:03:38]} 44. c7 {[%emt 0:00:39]} d3 {[%emt 0:00:07]} 45. c8=Q {[%emt 0:02:21]} Rxc8 {[%emt 0:00:05]} 46. Bxc8 {[%emt 0:00:07]} d2 {[%emt 0:00:04]} 47. Ra6+ {[%emt 0:00:28]} Ke7 {[%emt 0:00:04]} 48. Ra7+ {[%emt 0:01:24]} Kf8 {[%emt 0:00:51]} 49. Rd7 {[%emt 0:00:49]} 1/2-1/2

[Event "ROU-ch Men 2018"]
[Site "Olanesti"]
[Date "2018.05.16"]
[Round "3"]
[White "Paraschiv, Paul-Alexandru"]
[Black "Stoleriu, George"]
[Result "1-0"]
[ECO "A46"]
[WhiteElo "2131"]
[BlackElo "2333"]
[Annotator "NA"]
[PlyCount "93"]
[EventDate "2018.??.??"]
[EventType "swiss"]
[EventCountry "ROU"]
[SourceTitle "playchess.com"]
[Source "ChessBase"]
[SourceQuality "1"]
[TimeControl "40/5400+30:1800+30"]

1. d4 {[%emt 0:00:15]} Nf6 {[%emt 0:00:14]} 2. Nf3 {[%emt 0:00:11]} e6 {[%emt 0:00:06]} 3. e3 {[%emt 0:00:05]} c5 {[%emt 0:03:07]} 4. Bd3 {[%emt 0:00:14]} b6 {[%emt 0:00:04]} 5. O-O {[%emt 0:00:12]} Bb7 {[%emt 0:00:02]} 6. c4 {[%emt 0:00:08]} Be7 {[%emt 0:00:33]} 7. Nc3 {[%emt 0:01:02]} cxd4 {[%emt 0:01:05]} 8. exd4 {[%emt 0:00:08]} O-O {[%emt 0:00:48]} 9. d5 {[%emt 0:01:36]} Bb4 {[%emt 0:05:40] LiveBook: 16 Games} 10. Ne4 {[%emt 0:01:17] E14: Queen's Indian: Classical Variation (4 e3)} (10. Bg5 Bxc3 11. bxc3 h6 12. Bh4 Na6 13. Nd4 Nc5 14. Re1 Nxd3 15. Qxd3 Ba6 16. Rad1 Rc8 17. Qh3 Rxc4 18. dxe6 dxe6 19. Nxe6 {1-0 (37) Flores,D (2601)-Williams,J (2364) Cha Am 2018}) 10... Nxe4 {[%emt 0:18:07]} 11. Bxe4 {[%emt 0:00:19]} h6 $146 {[%emt 0:01:23]} ({Predecessor:} 11... f5 12. Bc2 exd5 13. cxd5 Ba6 14. Bd3 Bd6 15. Be3 Qf6 16. Bd4 Qf7 17. Be5 Bxd3 18. Qxd3 {½-½ (29) Doric,N (2330)-Lajthajm,B (2492) Paracin 2012}) 12. a3 {[%emt 0:07:00]} Be7 {[%emt 0:01:11]} 13. Re1 {[%emt 0:00:25]} exd5 {[%emt 0:02:51]} 14. Bxd5 {[%emt 0:01:58]} (14. cxd5 $16 Bd6 15. Nd4) 14... Nc6 {[%emt 0:06:16]} 15. Bf4 {[%emt 0:03:56]} Bf6 {[%emt 0:04:42]} 16. Qd2 {[%emt 0:02:06]} Qc8 {[%emt 0:08:48]} 17. Bd6 {[%emt 0:09:56]} Re8 {[%emt 0:01:47]} 18. Rxe8+ {[%emt 0:00:27]} Qxe8 {[%emt 0:00:06]} 19. Re1 {[%emt 0:00:10]} Qc8 {[%emt 0:00:19]} 20. b4 {[%emt 0:05:01]} a6 {[%emt 0:08:44]} 21. Qe3 {[%emt 0:15:08]} b5 {[%emt 0:01:15]} 22. Qe4 {[%emt 0:01:16]} Nd8 {[%emt 0:05:38]} 23. c5 {[%emt 0:10:07]} (23. Be5 $18 Bxd5 24. Qxd5 Bxe5 25. Nxe5) 23... Bxd5 {[%emt 0:01:53]} 24. Qxd5 {[%emt 0:00:20]} Ne6 {[%emt 0:00:27]} 25. Ne5 {[%emt 0:00:25]} ({Better is} 25. Be5) 25... Bxe5 {[%emt 0:00:42]} 26. Bxe5 {[%emt 0:00:35]} Qc6 {[%emt 0:04:40]} 27. Rd1 {[%emt 0:00:36]} a5 {[%emt 0:03:36]} 28. f4 {[%emt 0:04:27]} axb4 {[%emt 0:08:01]} 29. axb4 {[%emt 0:00:12]} Qxd5 {[%emt 0:07:39]} 30. Rxd5 {[%emt 0:00:10]} f6 {[%emt 0:00:18]} 31. f5 {[%emt 0:01:44]} Ng5 {[%emt 0:00:52]} 32. Bd4 {[%emt 0:00:24]} Ra4 {[%emt 0:03:28]} 33. Rxd7 {[%emt 0:00:15]} Rxb4 {[%emt 0:00:03]} 34. h4 {[%emt 0:01:17]} Ne4 {[%emt 0:00:47]} 35. c6 {[%emt 0:01:02]} Rc4 {[%emt 0:01:05]} 36. c7 {[%emt 0:00:28]} Kh7 {[%emt 0:00:04]} 37. Bb6 {[%emt 0:00:33]} b4 {[%emt 0:00:11]} 38. Rd4 {[%emt 0:01:34]} Rc1+ {[%emt 0:00:35]} 39. Kh2 {[%emt 0:00:07]} Nf2 {[%emt 0:01:06]} 40. Rxb4 {[%emt 0:00:00]} h5 {[%emt 0:00:36]} 41. Rb3 {[%emt 0:01:53]} Rh1+ {[%emt 0:00:50]} 42. Kg3 {[%emt 0:00:01]} Ne4+ {[%emt 0:00:06]} 43. Kf3 {[%emt 0:00:26]} Nd6 {[%emt 0:00:37]} 44. Bc5 {[%emt 0:00:47]} Nc8 {[%emt 0:00:02]} 45. Be3 {[%emt 0:00:39]} Rxh4 {[%emt 0:01:25]} 46. Rb8 {[%emt 0:00:20]} Ne7 {[%emt 0:02:10]} 47. Re8 {[%emt 0:00:12]} 1-0

[Event "ROU-ch Men 2018"]
[Site "Olanesti"]
[Date "2018.05.16"]
[Round "3"]
[White "Sava, Bogdan"]
[Black "Muller, Wilhelm"]
[Result "1-0"]
[ECO "A41"]
[WhiteElo "2099"]
[BlackElo "1896"]
[Annotator "NA"]
[PlyCount "139"]
[EventDate "2018.??.??"]
[EventType "swiss"]
[EventCountry "ROU"]
[SourceTitle "playchess.com"]
[Source "ChessBase"]
[SourceQuality "1"]
[TimeControl "40/5400+30:1800+30"]

1. d4 {[%emt 0:00:00]} d6 {[%emt 0:00:14]} 2. e4 {[%emt 0:01:19]} Nd7 {[%emt 0:00:15]} 3. Nc3 {[%emt 0:01:51]} e5 {[%emt 0:00:21]} 4. Nf3 {[%emt 0:01:56]} Ne7 {[%emt 0:00:49]} 5. Bc4 {[%emt 0:02:14]} exd4 {[%emt 0:05:40]} 6. Nxd4 {[%emt 0:00:26]} Ne5 {[%emt 0:01:22]} 7. Be2 {[%emt 0:02:18]} N7c6 {[%emt 0:06:44]} 8. Be3 {[%emt 0:03:36]} Nxd4 {[%emt 0:04:06]} 9. Bxd4 {[%emt 0:05:17]} Nc6 {[%emt 0:06:03]} 10. O-O {[%emt 0:09:35]} Be6 {[%emt 0:08:36]} 11. Bb5 {[%emt 0:02:42]} a6 {[%emt 0:04:01]} 12. Bxc6+ {[%emt 0:03:12]} bxc6 {[%emt 0:01:34]} 13. Re1 {[%emt 0:03:31]} f6 {[%emt 0:03:21]} 14. Qe2 {[%emt 0:05:40]} Be7 {[%emt 0:09:39]} 15. Rad1 {[%emt 0:05:38]} O-O {[%emt 0:12:11]} 16. e5 {[%emt 0:05:03]} Bf7 {[%emt 0:01:38]} 17. exd6 {[%emt 0:16:08]} Bxd6 {[%emt 0:01:02]} 18. Bc5 {[%emt 0:07:42]} Re8 {[%emt 0:03:41]} 19. Qf1 {[%emt 0:00:02]} Rxe1 {[%emt 0:01:05]} 20. Qxe1 {[%emt 0:00:02]} Qe8 {[%emt 0:00:39]} 21. Bxd6 {[%emt 0:06:19]} Qxe1+ {[%emt 0:01:01]} 22. Rxe1 {[%emt 0:00:02]} cxd6 {[%emt 0:00:13]} 23. f3 {[%emt 0:01:04]} Rb8 {[%emt 0:07:05]} 24. b3 {[%emt 0:00:45]} Kf8 {[%emt 0:04:03]} 25. Kf2 {[%emt 0:01:31]} Re8 {[%emt 0:03:17]} 26. Ne4 {[%emt 0:03:28]} Re6 {[%emt 0:04:39]} 27. Rd1 {[%emt 0:01:55]} Ke7 {[%emt 0:01:28]} 28. Rd4 {[%emt 0:00:29]} Bg6 {[%emt 0:04:42]} 29. Ra4 {[%emt 0:00:31]} Bxe4 {[%emt 0:01:00]} 30. fxe4 {[%emt 0:00:02]} d5 {[%emt 0:02:12]} 31. exd5 {[%emt 0:01:35]} cxd5 {[%emt 0:00:11]} 32. Rg4 {[%emt 0:04:51]} g6 {[%emt 0:00:37]} 33. c4 {[%emt 0:00:48]} dxc4 {[%emt 0:00:05]} 34. Rxc4 {[%emt 0:00:15]} Kd7 {[%emt 0:00:33]} 35. Rc5 {[%emt 0:01:24]} h5 {[%emt 0:00:51]} 36. Rc4 {[%emt 0:01:17]} Rc6 {[%emt 0:00:39]} 37. Rd4+ {[%emt 0:01:04]} Ke6 {[%emt 0:00:11]} 38. Ra4 {[%emt 0:00:00]} Kd7 {[%emt 0:00:27]} 39. h4 {[%emt 0:00:00]} Kc7 {[%emt 0:00:00]} 40. Ke3 {[%emt 0:00:00]} Kb6 {[%emt 0:00:58]} 41. Rb4+ {[%emt 0:04:09]} Kc7 {[%emt 0:00:37]} 42. Kd3 {[%emt 0:01:35]} Rd6+ {[%emt 0:01:22]} 43. Ke3 {[%emt 0:03:50]} Re6+ {[%emt 0:00:11]} 44. Kf3 {[%emt 0:00:30]} Rc6 {[%emt 0:02:48]} 45. Ra4 {[%emt 0:01:13]} Rc3+ {[%emt 0:00:54]} 46. Kf4 {[%emt 0:00:42]} Kb6 {[%emt 0:00:15]} 47. Re4 {[%emt 0:04:02]} Rc2 {[%emt 0:02:56]} 48. Re6+ {[%emt 0:00:15]} Rc6 {[%emt 0:00:05]} 49. Re3 $11 {[%emt 0:01:30]} (49. Rxc6+ $18 Kxc6 50. Ke4) 49... Rc2 {[%emt 0:16:59]} 50. Rg3 {[%emt 0:02:02]} Rxa2 {[%emt 0:00:17]} 51. Rxg6 {[%emt 0:00:04]} Kb5 {[%emt 0:00:20]} 52. g4 {[%emt 0:08:05]} hxg4 {[%emt 0:00:56]} 53. h5 {[%emt 0:02:28]} Rh2 {[%emt 0:03:24]} 54. Kxg4 {[%emt 0:00:21]} a5 {[%emt 0:00:14]} 55. Rxf6 {[%emt 0:00:39]} Rg2+ {[%emt 0:02:15]} 56. Kh3 {[%emt 0:04:12]} Rg8 {[%emt 0:00:22]} 57. Kh4 {[%emt 0:00:15]} Rb8 {[%emt 0:02:37]} 58. h6 {[%emt 0:00:35]} Kc5 {[%emt 0:01:00]} 59. h7 {[%emt 0:03:46]} Rh8 {[%emt 0:00:53]} 60. Rf7 {[%emt 0:00:03]} Kb4 {[%emt 0:00:15]} 61. Rb7+ {[%emt 0:01:05]} Kc3 {[%emt 0:01:35]} 62. Kg3 {[%emt 0:01:05]} Rxh7 {[%emt 0:01:53]} 63. Rxh7 {[%emt 0:00:03]} Kxb3 {[%emt 0:00:01]} 64. Rb7+ {[%emt 0:02:01]} Kc3 {[%emt 0:00:08]} 65. Ra7 {[%emt 0:00:04]} Kb4 {[%emt 0:00:04]} 66. Kf3 {[%emt 0:00:15]} a4 {[%emt 0:00:03]} 67. Ke2 {[%emt 0:00:40]} a3 {[%emt 0:00:24]} 68. Kd2 {[%emt 0:00:39]} Kb3 {[%emt 0:00:22]} 69. Kc1 {[%emt 0:00:14]} a2 {[%emt 0:00:43]} 70. Ra8 {[%emt 0:00:09]} 1-0

[Event "ROU-ch Men 2018"]
[Site "Olanesti"]
[Date "2018.05.16"]
[Round "3"]
[White "Raducanu, Andrei-Augustin"]
[Black "Afloarei, Jenica"]
[Result "1-0"]
[ECO "A35"]
[WhiteElo "2063"]
[BlackElo "1798"]
[Annotator "NA"]
[PlyCount "151"]
[EventDate "2018.??.??"]
[EventType "swiss"]
[EventCountry "ROU"]
[SourceTitle "playchess.com"]
[Source "ChessBase"]
[SourceQuality "1"]
[TimeControl "40/5400+30:1800+30"]

1. Nf3 {[%emt 0:00:00]} Nf6 {[%emt 0:00:39]} 2. c4 {[%emt 0:00:44]} c5 {[%emt 0:03:36]} 3. Nc3 {[%emt 0:01:50]} Nc6 {[%emt 0:00:32]} 4. d4 {[%emt 0:00:46]} cxd4 {[%emt 0:01:15]} 5. Nxd4 {[%emt 0:00:06]} g6 {[%emt 0:01:50]} 6. g3 {[%emt 0:01:56]} d6 {[%emt 0:01:56]} 7. Nc2 {[%emt 0:01:49]} Bg7 {[%emt 0:04:25]} 8. Bg2 {[%emt 0:00:15]} O-O {[%emt 0:00:20]} 9. O-O {[%emt 0:00:04]} Bd7 {[%emt 0:01:20] LiveBook: 199 Games} 10. Ne3 {[%emt 0:14:58] A38: Symmetrical English vs ...g6: 4 Bg2 Bg7 5 Nf3 Nf6} (10. b3 Qc8 11. Re1 Bh3 12. Bh1 Ng4 13. Qd2 Rd8 14. Rb1 h5 15. Nd5 Nf6 16. Nf4 Bf5 17. e4 Bg4 18. f3 Bd7 {0-1 (48) Ganguly,S (2644)-Lu,S (2624) Liaocheng 2017}) 10... Rc8 {[%emt 0:09:19]} 11. Rb1 {[%emt 0:05:20]} Be6 $146 {[%emt 0:02:55]} ({Predecessor:} 11... Qa5 12. Qd2 Rfe8 13. b3 Nd8 14. Rd1 Bc6 15. Bb2 Bxg2 16. Kxg2 {1-0 (38) Uryupin,I (2224)-Agapov,Y (2048) Tambov 2011}) 12. h3 {[%emt 0:20:03]} Qd7 {[%emt 0:10:50]} 13. Kh2 {[%emt 0:00:42]} Rfd8 {[%emt 0:03:22]} 14. Ncd5 {[%emt 0:12:18]} Bxd5 {[%emt 0:05:38]} 15. cxd5 {[%emt 0:02:44]} Nb4 {[%emt 0:03:38]} 16. h4 {[%emt 0:09:15]} Qb5 {[%emt 0:02:00]} 17. Qb3 {[%emt 0:03:23]} Rc5 {[%emt 0:04:37]} 18. Rd1 {[%emt 0:13:55]} Rdc8 {[%emt 0:07:11]} 19. Bd2 {[%emt 0:02:35]} a5 {[%emt 0:02:49]} 20. a3 {[%emt 0:05:33]} Na6 {[%emt 0:08:15]} (20... Nbxd5 $11 21. Qxb5 Rxb5 22. Nxd5 Nxd5) 21. Qxb5 {[%emt 0:00:09]} Rxb5 {[%emt 0:00:09]} 22. Rdc1 {[%emt 0:01:30]} Rbc5 {[%emt 0:01:39]} 23. Rxc5 {[%emt 0:00:11]} Rxc5 {[%emt 0:00:15]} 24. Rc1 {[%emt 0:00:50]} Rxc1 {[%emt 0:01:38]} 25. Bxc1 {[%emt 0:00:01]} b5 {[%emt 0:00:18]} 26. Bd2 {[%emt 0:01:16]} a4 {[%emt 0:00:23]} 27. Bc3 {[%emt 0:00:40]} Nd7 {[%emt 0:00:34]} 28. Bxg7 {[%emt 0:00:27]} Kxg7 {[%emt 0:00:01]} 29. Nc2 {[%emt 0:00:35]} Nb6 {[%emt 0:00:35]} 30. e4 {[%emt 0:00:29]} Nc4 {[%emt 0:00:58]} 31. Bf1 {[%emt 0:00:06]} Nxb2 {[%emt 0:01:00]} 32. Bxb5 {[%emt 0:00:02]} Nc5 {[%emt 0:00:22]} 33. f3 {[%emt 0:00:01]} Nb3 {[%emt 0:03:41]} 34. Kg2 {[%emt 0:00:41]} Nc5 {[%emt 0:03:33]} 35. Kf2 {[%emt 0:00:20]} Nd1+ {[%emt 0:00:53]} 36. Ke1 {[%emt 0:00:55]} Nc3 {[%emt 0:00:21]} 37. Bc6 {[%emt 0:01:03]} Kf6 {[%emt 0:06:31]} 38. Kd2 {[%emt 0:00:07]} Nb1+ {[%emt 0:00:13]} 39. Kc1 {[%emt 0:00:32]} Nc3 {[%emt 0:00:12]} 40. Kd2 {[%emt 0:00:00]} Nb1+ {[%emt 0:00:10]} 41. Ke3 {[%emt 0:00:18]} e5 {[%emt 0:01:39]} 42. Bb5 {[%emt 0:08:22]} Ke7 {[%emt 0:02:00]} 43. g4 {[%emt 0:00:51]} h6 {[%emt 0:03:47]} 44. Bc4 {[%emt 0:07:05]} g5 {[%emt 0:04:03]} 45. h5 {[%emt 0:02:50]} Kd8 $11 {[%emt 0:00:48]} 46. Ke2 {[%emt 0:03:10]} Nb3 {[%emt 0:01:30]} 47. Kd3 {[%emt 0:05:40]} Nc5+ {[%emt 0:01:19]} 48. Ke3 {[%emt 0:01:15]} Nb3 {[%emt 0:00:43]} 49. Bb5 {[%emt 0:00:32]} Nc5 {[%emt 0:00:18]} 50. Kf2 {[%emt 0:00:21]} Ke7 {[%emt 0:01:39]} 51. Ke1 {[%emt 0:00:21]} Kf6 {[%emt 0:01:55]} 52. Bc4 {[%emt 0:01:47]} Nb3 {[%emt 0:00:44]} 53. Bb5 {[%emt 0:02:37]} Nc5 {[%emt 0:01:48]} 54. Be8 {[%emt 0:00:11]} Ke7 {[%emt 0:00:29]} 55. Bc6 {[%emt 0:00:05]} Kf8 {[%emt 0:01:41]} 56. Kd1 {[%emt 0:00:40]} Nc3+ {[%emt 0:00:37]} 57. Kd2 {[%emt 0:00:25]} Nb1+ {[%emt 0:00:21]} 58. Kc1 {[%emt 0:00:01]} Nc3 {[%emt 0:00:42]} 59. Kd2 {[%emt 0:03:07]} Nb1+ {[%emt 0:00:11]} 60. Kc1 {[%emt 0:00:55]} Nc3 {[%emt 0:00:17]} 61. Ne1 {[%emt 0:00:09]} Ne2+ {[%emt 0:04:14]} 62. Kd2 {[%emt 0:00:02]} Nd4 {[%emt 0:00:44]} 63. Kc3 {[%emt 0:00:02]} Ke7 {[%emt 0:05:58]} 64. Kb4 {[%emt 0:00:06]} Nxc6+ {[%emt 0:00:12]} 65. dxc6 {[%emt 0:00:02]} Kd8 {[%emt 0:00:51]} 66. Nc2 {[%emt 0:01:41]} Kc7 {[%emt 0:01:21]} 67. Kb5 {[%emt 0:00:04]} Nb3 {[%emt 0:01:00]} 68. Kxa4 {[%emt 0:01:08]} Nd2 {[%emt 0:00:32]} 69. Kb5 {[%emt 0:01:20]} Nxf3 {[%emt 0:04:35]} 70. a4 {[%emt 0:00:01]} d5 {[%emt 0:00:52]} 71. exd5 {[%emt 0:00:23]} f5 {[%emt 0:02:11]} 72. Ne3 {[%emt 0:01:21]} Nd4+ {[%emt 0:00:34]} 73. Kc5 {[%emt 0:00:17]} Nb3+ {[%emt 0:01:57]} 74. Kb4 {[%emt 0:00:27]} f4 {[%emt 0:01:51]} 75. Kxb3 {[%emt 0:00:07]} fxe3 {[%emt 0:00:04]} 76. Kc2 {[%emt 0:00:12]} 1-0

[Event "ROU-ch Men 2018"]
[Site "Olanesti"]
[Date "2018.05.16"]
[Round "3"]
[White "Iustin, Silviu"]
[Black "Pisu, Robert-Daniel"]
[Result "0-1"]
[ECO "B12"]
[WhiteElo "1962"]
[BlackElo "2254"]
[Annotator "NA"]
[PlyCount "68"]
[EventDate "2018.??.??"]
[EventType "swiss"]
[EventCountry "ROU"]
[SourceTitle "playchess.com"]
[Source "ChessBase"]
[SourceQuality "1"]
[TimeControl "40/5400+30:1800+30"]

1. e4 {[%emt 0:00:02]} c6 {[%emt 0:00:08]} 2. d4 {[%emt 0:00:19]} d5 {[%emt 0:00:07]} 3. e5 {[%emt 0:00:06]} g6 {[%emt 0:02:15]} 4. c4 {[%emt 0:01:41]} Bg7 {[%emt 0:03:26]} 5. Nc3 {[%emt 0:00:55] B12: Caro-Kann: Advance Variation} dxc4 {[%emt 0:10:36]} (5... Nh6 6. Nf3 O-O 7. h3 Be6 8. Qb3 dxc4 9. Qxb7 Qb6 10. Qxb6 axb6 11. g4 Na6 12. Bg2 Nb4 {1-0 (34) Neiksans,A (2586)-Antoms,G (2349) Riga 2017}) 6. Bxc4 {[%emt 0:01:39]} Nh6 {[%emt 0:00:48] LiveBook: 4 Games} 7. Bxh6 $146 {[%emt 0:08:19]} ({Predecessor:} 7. Bf4 b5 8. Bb3 Nf5 9. Nf3 h5 10. Qd2 a5 11. a4 bxa4 12. Nxa4 Na6 {1-0 (40) Jarmula,L (2321)-Briestensky,R (2318) Slovakia 2016}) 7... Bxh6 {[%emt 0:00:14]} 8. Nge2 {[%emt 0:00:15]} O-O {[%emt 0:02:53]} 9. h4 {[%emt 0:01:57]} Kg7 {[%emt 0:08:35]} 10. f3 {[%emt 0:04:58]} ({White should play} 10. h5 $14) 10... f5 {[%emt 0:01:44]} (10... c5 $5) 11. f4 {[%emt 0:03:17]} Nd7 {[%emt 0:02:49]} 12. O-O {[%emt 0:01:45]} Nb6 {[%emt 0:06:09]} 13. Bb3 {[%emt 0:00:20]} e6 {[%emt 0:05:08]} 14. g3 {[%emt 0:00:54]} Nd5 {[%emt 0:00:44]} 15. Bxd5 {[%emt 0:01:55]} exd5 {[%emt 0:00:33]} 16. Na4 {[%emt 0:03:06]} b6 {[%emt 0:12:27]} 17. Rc1 {[%emt 0:01:06]} Bb7 {[%emt 0:00:06]} 18. Rf3 {[%emt 0:07:43]} Qe7 {[%emt 0:02:47]} 19. Rfc3 {[%emt 0:01:07]} Rac8 {[%emt 0:02:06]} 20. a3 {[%emt 0:00:54]} Rfd8 {[%emt 0:09:23]} 21. b4 {[%emt 0:02:23]} Kh8 {[%emt 0:01:16]} 22. Kh2 {[%emt 0:00:55]} Bf8 {[%emt 0:01:03]} 23. Ng1 {[%emt 0:01:38]} Qe8 {[%emt 0:07:41]} 24. Nf3 {[%emt 0:01:57]} Ba6 {[%emt 0:04:22]} 25. Nb2 {[%emt 0:08:56]} c5 {[%emt 0:03:29]} 26. bxc5 {[%emt 0:11:05]} bxc5 {[%emt 0:00:05]} 27. dxc5 {[%emt 0:02:46]} d4 $1 {[%emt 0:00:22]} 28. Nxd4 {[%emt 0:01:23]} Rd5 {[%emt 0:00:29]} 29. c6 {[%emt 0:04:20]} Qd8 {[%emt 0:03:08]} 30. c7 {[%emt 0:03:07]} Qd7 {[%emt 0:00:22]} 31. e6 {[%emt 0:00:50]} (31. Qa4 $17 Qxa4 32. Nxa4 Rxd4 33. Nc5 Rd2+ 34. Kg1) 31... Qg7 {[%emt 0:00:20]} 32. Qa4 {[%emt 0:00:33]} Qxd4 {[%emt 0:00:07]} 33. Qc6 {[%emt 0:17:14]} Qf2+ {[%emt 0:00:23]} 34. Kh3 {[%emt 0:00:03]} Bf1+ {[%emt 0:00:09] Ra1} 0-1